bitfinex-derivatives/quotes_ETHF0:USTF0_20250518
["timestamp","ask_amount","ask_price","bid_price","bid_amount"]
[1747584420377,0.77637,2575.2,2575.1,3.058]
[1747584420588,2.80617,2575.2,2575.1,3.058]
[1747584421087,0.77637,2575.2,2575.0,0.77642]
[1747584421383,0.77641,2575.1,2574.9,0.77645]
[1747584421583,9.683,2575.3,2574.8,3.2078]
[1747584421584,9.683,2575.3,2574.8,3.98427]
[1747584421887,0.77646,2574.9,2574.8,3.2078]
[1747584422276,3.2078,2575.4,2574.8,3.2078]
[1747584422589,3.2078,2575.4,2574.9,2.0919]
[1747584422775,0.77646,2575.0,2574.9,0.77646]
[1747584422979,0.77646,2575.0,2574.8,0.77648]
[1747584423185,0.77646,2574.9,2574.8,3.83448]
[1747584423388,0.77638,2575.2,2575.1,0.77639]
[1747584423784,0.77635,2575.3,2575.2,0.77637]
[1747584423985,0.77633,2575.4,2574.9,3.2078]
[1747584424188,0.77636,2575.3,2574.9,6.2658]
[1747584424385,0.77636,2575.3,2575.2,0.77637]
[1747584424585,0.77633,2575.4,2575.3,0.77634]
[1747584424783,0.77636,2575.3,2575.2,0.77636]
[1747584424986,0.77638,2575.2,2575.1,0.77639]
[1747584425190,0.77638,2575.2,2575.1,3.83439]
[1747584425794,11.6474,2575.6,2575.5,0.77628]
[1747584426088,10.45825,2575.6,2575.5,0.77628]
[1747584426289,0.7763,2575.5,2575.4,0.77629]
[1747584426483,9.682,2575.6,2575.3,1.9971]
[1747584426888,0.77631,2575.4,2575.3,6.08672198]
[1747584427092,0.7764,2575.1,2575.0,3.058]
[1747584428492,11.97361114,2575.6,2575.0,7.5503351]
[1747584428790,13.99871114,2575.6,2575.3,3.2078]
[1747584428988,0.7764,2575.1,2575.0,6.2658]
[1747584429185,5.14859,2575.4,2574.8,5.7991]
[1747584429388,0.77646,2574.9,2574.8,5.7991]
[1747584429793,0.77649,2574.8,2574.7,3.2078]
[1747584430087,2.69339,2574.8,2574.7,3.2078]
[1747584430290,0.77658,2574.5,2574.4,1.9203]
[1747584430892,0.77657,2574.6,2574.4,6.38860254]
[1747584431089,0.77657,2574.6,2574.4,9.44660254]
[1747584431482,0.77654,2574.7,2574.4,9.44660254]
[1747584431685,0.77654,2574.7,2574.5,0.77656]
[1747584431882,5.2763,2575.1,2574.6,3.2078]
[1747584432093,5.2763,2575.1,2574.8,0.77648]
[1747584432094,0.77647,2574.9,2574.8,0.77648]
[1747584432292,4.0921,2575.1,2574.6,7.69494875]
[1747584432492,0.77647,2574.9,2574.7,0.7765]
[1747584432682,0.77648,2574.9,2574.7,0.77652]
[1747584432885,0.7765,2574.8,2574.7,0.77651]
[1747584433086,0.77646,2574.9,2574.8,4.13084774]
[1747584433391,0.77649,2574.8,2574.7,4.22107549]
[1747584433586,9.682,2575.0,2574.6,3.058]
[1747584433787,0.77648,2574.9,2574.7,4.99759549]
[1747584434187,0.77649,2574.8,2574.7,4.22107549]
[1747584434388,0.77649,2574.8,2574.7,4.99759549]
[1747584434787,0.77652,2574.7,2574.6,3.058]
[1747584435202,5.2314,2574.9,2574.6,3.058]
[1747584435203,5.2314,2574.9,2574.6,0.77654]
[1747584435496,0.77653,2574.7,2574.6,0.77654]
[1747584435689,0.77653,2574.7,2574.4,1.9203]
[1747584435890,5.2314,2574.9,2574.4,1.9203]
[1747584436094,0.77657,2574.6,2574.4,1.9203]
[1747584436292,0.77658,2574.5,2574.4,2.69689]
[1747584436590,0.77658,2574.5,2574.4,0.77659]
[1747584436792,0.77661,2574.4,2574.3,1.02960738]
[1747584437298,9.682,2574.5,2574.4,0.77661]
[1747584437901,0.77661,2574.4,2574.3,4.08760738]
[1747584438107,9.682,2574.5,2574.4,0.77661]
[1747584438398,10.45858,2574.5,2574.4,2.0995]
[1747584439090,0.77664,2574.3,2574.2,2.0995]
[1747584439692,0.77667,2574.2,2574.1,2.0898]
[1747584440403,1.9935,2574.4,2574.3,0.77664]
[1747584440599,2.085,2574.5,2574.3,3.98442]
[1747584440800,2.86158,2574.5,2574.4,2.87611]
[1747584440995,2.86158,2574.5,2574.4,2.0995]
[1747584441194,4.28511114,2574.7,2574.4,2.0995]
[1747584441603,2.29161114,2574.7,2574.6,0.77655]
[1747584442305,2.29161114,2574.7,2574.6,6.02815]
[1747584442690,2.29161114,2574.7,2574.6,2.82035]
[1747584443605,2.29161114,2574.7,2574.6,7.11388107]
[1747584443797,2.29161114,2574.7,2574.6,16.76088107]
[1747584444204,0.77646,2574.9,2574.8,0.77649]
[1747584444392,0.7765,2574.8,2574.7,0.77651]
[1747584444593,5.2335,2575.1,2574.7,2.0843]
[1747584444999,0.77649,2574.8,2574.7,2.86082]
[1747584445198,0.77649,2574.8,2574.7,2.86081]
[1747584445604,0.77648,2574.9,2574.8,0.77649]
[1747584445805,0.77648,2574.9,2574.8,2.0843]
[1747584446006,0.77655,2574.6,2574.5,10.41957]
[1747584446506,0.77648,2574.9,2574.8,0.77649]
[1747584446808,5.2335,2575.1,2574.5,13.95175102]
[1747584447007,0.77645,2575.0,2574.9,0.77645]
[1747584447304,5.2335,2575.1,2574.5,18.95117102]
[1747584447506,0.77647,2574.9,2574.8,0.77648]
[1747584447702,0.77645,2575.0,2574.9,0.77646]
[1747584448103,2.0912,2575.2,2575.1,0.7764]
[1747584448310,2.29161114,2575.3,2575.2,0.77637]
[1747584449911,2.29161114,2575.3,2575.1,7.50929955]
[1747584450108,0.77633,2575.4,2575.1,14.08729955]
[1747584450302,0.77635,2575.3,2575.2,0.77635]
[1747584450611,0.77636,2575.3,2575.2,0.77636]
[1747584450908,0.77639,2575.2,2575.1,0.77639]
[1747584451415,3.2078,2575.3,2574.9,1.15068362]
[1747584451710,2.84812,2575.1,2575.0,0.77643]
[1747584452307,2.0717,2575.1,2575.0,0.77643]
[1747584452610,0.77633,2575.4,2574.9,1.15068362]
[1747584452805,0.77634,2575.3,2574.9,1.15068362]
[1747584453004,0.77633,2575.4,2575.2,0.77637]
[1747584453204,2.0389,2575.3,2575.2,0.77637]
[1747584453414,2.0389,2575.3,2575.1,0.7764]
[1747584453415,0.77639,2575.2,2575.1,0.7764]
[1747584453603,0.77639,2575.2,2575.0,4.81894526]
[1747584453805,0.77639,2575.2,2575.1,0.7764]
[1747584454210,0.77639,2575.2,2575.0,4.04253526]
[1747584454508,2.81525,2575.3,2575.2,0.77637]
[1747584454812,2.81525,2575.3,2575.1,0.77638]
[1747584455202,6.27567114,2575.6,2575.5,0.77628]
[1747584455405,5.49941114,2575.6,2575.5,0.77628]
[1747584455804,2.29161114,2575.6,2575.5,0.77628]
[1747584456107,2.29161114,2575.6,2575.5,8.06530096]
[1747584456409,0.77622,2575.8,2575.7,0.77622]
[1747584456607,0.77624,2575.7,2575.6,0.77624]
[1747584457012,0.77624,2575.7,2575.6,4.90090295]
[1747584457309,0.77624,2575.7,2575.6,4.12466295]
[1747584457706,2.29161114,2576.0,2575.9,0.77616]
[1747584457913,2.29161114,2576.0,2575.9,3.98396]
[1747584458110,2.29161114,2576.0,2575.9,11.36825154]
[1747584458514,3.06774114,2576.0,2575.9,10.59209154]
[1747584459114,3.06774114,2576.0,2575.9,7.53409154]
[1747584459415,0.77619,2575.8,2575.7,1.933]
[1747584460008,0.77618,2575.9,2575.8,0.77619]
[1747584460208,0.77619,2575.8,2575.7,2.70921]
[1747584460410,0.77619,2575.9,2575.7,1.933]
[1747584460611,2.80369,2575.9,2575.7,2.7092]
[1747584460806,2.80369,2575.9,2575.8,2.044]
[1747584461008,2.80369,2575.9,2575.7,0.7762]
[1747584461009,2.0275,2575.9,2575.6,7.04204]
[1747584461207,0.77622,2575.7,2575.6,6.02804]
[1747584461711,0.77621,2575.8,2575.7,0.77622]
[1747584461914,0.77622,2575.7,2575.6,6.02804]
[1747584463716,2.0275,2575.9,2575.5,3.058]
[1747584463717,0.77625,2575.6,2575.5,3.058]
[1747584464016,2.70005,2575.6,2575.5,5.0451]
[1747584464314,2.70005,2575.6,2575.5,2.76338]
[1747584464615,2.70005,2575.6,2575.5,1.9871]
[1747584464823,0.77623,2575.7,2575.5,1.9871]
[1747584465111,9.632,2576.0,2575.6,1.94064]
[1747584465416,3.2078,2576.2,2576.1,0.7761]
[1747584465805,3.06763114,2576.4,2576.3,0.77604]
[1747584466008,2.29161114,2576.4,2576.3,0.77604]
[1747584466203,2.29161114,2576.4,2576.3,3.83404]
[1747584466406,2.29161114,2576.4,2576.3,5.82724]
[1747584468318,0.77599,2576.5,2576.4,0.77601]
[1747584468517,0.77599,2576.5,2576.4,2.85131]
[1747584469121,0.77599,2576.5,2576.4,5.1333]
[1747584469821,5.77599,2576.5,2576.4,3.058]
[1747584470018,7.89129,2576.5,2576.4,3.058]
[1747584470215,7.89129,2576.5,2575.8,1.02969592]
[1747584470216,0.77616,2575.9,2575.8,1.02969592]
[1747584470415,13.61396,2575.9,2575.8,1.02969592]
[1747584471819,12.8378,2575.9,2575.5,2.85158]
[1747584472121,1.9534,2575.8,2575.5,2.85158]
[1747584472710,4.2121,2576.1,2575.5,2.0753]
[1747584472916,1.9534,2576.0,2575.5,2.85156]
[1747584473224,5.1612,2576.0,2575.6,0.77625]
[1747584473423,0.77625,2575.7,2575.6,0.77625]
[1747584473723,0.77616,2575.9,2575.5,2.0753]
[1747584473920,1.9534,2575.9,2575.7,0.7762]
[1747584474124,1.9534,2575.9,2575.8,2.70019]
[1747584474724,2.72956,2575.9,2575.8,1.924]
[1747584474918,3.2078,2576.0,2575.9,0.77616]
[1747584475120,2.29161114,2576.3,2575.9,0.77616]
[1747584475121,3.2078,2576.3,2576.2,0.77607]
[1747584475319,4.27401114,2576.4,2576.3,0.77604]
[1747584475522,2.29161114,2576.4,2576.3,0.77604]
[1747584476122,2.29161114,2576.4,2576.3,5.80604]
[1747584476422,3.06762114,2576.4,2576.3,3.058]
[1747584476623,5.05002114,2576.4,2576.3,3.058]
[1747584477127,0.77606,2576.3,2576.1,0.77609]
[1747584477428,0.77606,2576.3,2576.2,1.972]
[1747584477630,0.77613,2576.0,2575.9,12.40875]
[1747584477929,0.77613,2576.0,2575.9,2.0456]
[1747584478122,0.77618,2575.9,2575.7,2.88352]
[1747584478321,11.6665,2576.2,2575.8,0.77618]
[1747584478624,0.77616,2575.9,2575.8,4.47186573]
[1747584478928,0.77616,2575.9,2575.7,4.1213]
[1747584479129,0.77616,2575.9,2575.8,1.9409]
[1747584480634,0.77616,2575.9,2575.7,4.89752]
[1747584480635,1.9603,2576.0,2575.5,3.2078]
[1747584480826,0.77613,2576.0,2575.9,0.77614]
[1747584481424,3.2078,2576.3,2575.7,1.94056]
[1747584481630,2.29161114,2576.4,2576.3,0.77604]
[1747584481835,3.06762114,2576.4,2576.2,0.77605]
[1747584482135,0.77604,2576.3,2576.2,3.9781]
[1747584482436,2.29161114,2576.4,2576.2,3.9781]
[1747584482637,2.29161114,2576.4,2576.3,2.78434]
[1747584483745,2.29161114,2576.4,2576.3,6.92430145]
[1747584484341,2.29161114,2576.4,2576.3,9.98230145]
[1747584485147,0.77596,2576.6,2576.3,10.2371061]
[1747584485543,3.2078,2577.0,2576.9,0.77586]
[1747584485852,2.29161114,2577.2,2577.1,0.7758]
[1747584486041,2.29161114,2577.2,2576.8,0.77588]
[1747584486241,0.77582,2577.1,2576.9,0.77586]
[1747584486441,2.69991,2577.1,2576.9,0.77586]
[1747584486647,2.69991,2577.1,2577.0,2.84373]
[1747584486947,1.9241,2577.1,2577.0,2.84373]
[1747584487148,2.6999,2577.1,2577.0,2.0679]
[1747584487349,1.9241,2577.1,2576.9,0.77586]
[1747584487549,1.9241,2577.1,2577.0,0.77583]
[1747584487738,5.1789,2577.3,2576.7,5.2757]
[1747584487943,5.1789,2577.3,2577.1,0.77579]
[1747584488149,5.95466,2577.3,2577.0,0.77582]
[1747584488344,0.77578,2577.2,2576.8,8.56445218]
[1747584488538,1.9711,2577.1,2576.8,4.1032]
[1747584488749,1.9711,2577.1,2577.0,0.77583]
[1747584489049,12.7838,2577.3,2577.2,0.77577]
[1747584489744,15.57244,2577.3,2577.2,0.77577]
[1747584490149,14.7967,2577.3,2577.2,0.7693198]
[1747584490657,0.77578,2577.2,2577.0,2.0679]
[1747584490843,3.2078,2577.3,2577.2,0.77577]
[1747584491043,11.86661114,2577.7,2577.2,3.2078]
[1747584491238,11.86661114,2577.7,2577.6,0.77565]
[1747584491443,13.87951114,2577.7,2577.6,0.77565]
[1747584491848,2.29161114,2577.7,2577.6,3.98345]
[1747584492454,2.29161114,2577.7,2577.6,8.28434439]
[1747584493356,2.71251,2578.1,2577.6,7.50869439]
[1747584493547,2.71251,2578.1,2577.7,2.06]
[1747584493854,2.71251,2578.1,2577.9,0.77555]
[1747584494050,2.71251,2578.1,2577.9,0.77554]
[1747584494256,0.77553,2578.0,2577.8,0.77556]
[1747584494452,177.24774415,2578.4,2577.7,11.612]
[1747584494751,0.77548,2578.2,2578.0,0.77551]
[1747584494957,0.77547,2578.2,2577.9,2.06]
[1747584495158,0.77545,2578.3,2577.9,2.06]
[1747584495355,0.77545,2578.3,2578.1,0.77547]
[1747584495652,175.22924415,2578.4,2578.3,0.77544]
[1747584495852,0.77544,2578.3,2578.2,6.09999538]
[1747584496050,0.77544,2578.3,2578.2,2.06]
[1747584496252,2.74214,2578.3,2578.2,2.06]
[1747584496458,0.7755,2578.1,2578.0,3.9839]
[1747584496658,2.89979,2578.2,2578.0,4.75941]
[1747584496957,2.1243,2578.2,2578.1,0.7755]
[1747584497349,2.89977,2578.2,2578.0,3.9839]
[1747584497545,0.7755,2578.1,2578.0,3.9839]
[1747584497761,2.7422,2578.1,2578.0,2.0535]
[1747584497950,1.9667,2578.1,2578.0,2.82903]
[1747584498151,2.7422,2578.1,2578.0,2.0535]
[1747584498658,2.7422,2578.1,2578.0,2.82903]
[1747584499759,0.77557,2577.9,2577.8,0.77558]
[1747584499956,0.77557,2577.9,2577.8,2.88168]
[1747584500259,0.77555,2578.0,2577.8,2.88169]
[1747584500461,1.9667,2578.1,2577.8,2.88168]
[1747584500653,1.9667,2578.1,2578.0,0.77553]
[1747584500955,2.1243,2578.2,2578.1,0.7755]
[1747584501157,2.89977,2578.2,2578.1,0.7755]
[1747584501361,0.7755,2578.1,2578.0,2.1061]
[1747584501552,2.8029,2578.1,2578.0,2.1061]
[1747584502159,0.77553,2578.0,2577.9,3.2078]
[1747584502359,2.74263,2578.0,2577.9,0.77556]
[1747584502557,1.9671,2578.0,2577.5,2.0328]
[1747584502755,0.77565,2577.6,2577.5,2.1078]
[1747584503453,0.77571,2577.4,2577.3,2.84342]
[1747584503763,2.7428,2577.5,2577.4,0.77571]
[1747584504252,0.77571,2577.4,2577.3,2.1078]
[1747584504457,0.77574,2577.3,2577.2,3.2078]
[1747584504660,0.77574,2577.3,2577.2,3.98357]
[1747584504861,0.77574,2577.3,2577.2,3.2078]
[1747584505058,0.77583,2577.0,2576.9,2.0139]
[1747584505255,9.571,2577.3,2577.0,0.77583]
[1747584505256,0.7758,2577.1,2577.0,0.77583]
[1747584505457,4.1092,2577.2,2577.1,0.7758]
[1747584506560,4.88497,2577.2,2577.1,0.7758]
[1747584506864,2.0616,2577.2,2577.1,0.7758]
[1747584507056,11.6196,2577.4,2577.3,0.77574]
[1747584507258,11.6196,2577.4,2577.2,0.77575]
[1747584507458,11.6196,2577.4,2577.3,2.0704]
[1747584507657,0.77577,2577.2,2577.1,4.05339576]
[1747584507857,0.77576,2577.3,2577.1,0.7758]
[1747584508054,1.9662,2577.2,2577.1,0.7758]
[1747584508353,9.572,2577.4,2577.1,0.7758]
[1747584508354,0.77573,2577.4,2577.3,0.77574]
[1747584508555,12.31389,2577.5,2577.4,0.77571]
[1747584508756,0.77583,2577.0,2576.9,2.0139]
[1747584508953,5.14722,2577.3,2576.7,5.3204]
[1747584509160,3.9087,2577.2,2576.7,5.3204]
[1747584509364,0.77586,2576.9,2576.8,2.1126]
[1747584509552,0.77589,2576.8,2576.7,3.2078]
[1747584509757,2.74209,2576.8,2576.7,3.2078]
[1747584511267,2.74209,2576.8,2576.7,3.98372]
[1747584511462,0.77585,2577.0,2576.7,3.2078]
[1747584511660,0.77585,2577.0,2576.9,0.77586]
[1747584511865,4.0051,2577.1,2576.8,2.126]
[1747584512064,2.042,2577.1,2577.0,0.77583]
[1747584512768,0.77584,2577.0,2576.9,0.77584]
[1747584512969,0.77584,2577.0,2576.9,2.90184]
[1747584513268,0.77583,2577.0,2576.9,2.90184]
[1747584513468,2.81782,2577.1,2577.0,0.77583]
[1747584513768,1.9631,2577.3,2577.2,0.77577]
[1747584513974,3.2078,2577.4,2577.3,0.77574]
[1747584514975,3.98351,2577.4,2577.3,0.77574]
[1747584515468,0.77574,2577.3,2577.2,1.923]
[1747584515669,0.77574,2577.3,2577.2,2.69877]
[1747584516071,6.1331,2577.5,2577.2,1.923]
[1747584516072,2.1177,2577.5,2577.2,1.923]
[1747584516259,9.519,2577.6,2577.5,0.77568]
[1747584516464,5.96349,2578.2,2578.0,0.77553]
[1747584516661,2.75569,2578.2,2578.0,0.77553]
[1747584516864,1.9802,2578.2,2577.9,0.77555]
[1747584517060,0.77554,2578.0,2577.9,1.923]
[1747584517274,2.0187,2578.0,2577.3,7.7727]
[1747584517573,0.77557,2577.9,2577.7,0.7756]
[1747584517872,0.77557,2577.9,2577.8,2.0233]
[1747584518372,0.77557,2577.9,2577.6,2.1074]
[1747584518373,0.77562,2577.7,2577.6,2.1074]
[1747584518566,0.77562,2577.7,2577.4,1.0291412]
[1747584518567,0.77562,2577.7,2577.4,3.0524412]
[1747584518766,0.77562,2577.7,2577.5,0.77568]
[1747584518967,12.3123,2577.8,2577.6,2.0233]
[1747584519166,12.3123,2577.8,2577.7,0.77562]
[1747584519368,0.77562,2577.7,2577.6,2.0233]
[1747584519568,0.77568,2577.5,2577.4,1.0291412]
[1747584519777,2.0187,2577.7,2577.3,0.77574]
[1747584519778,0.77572,2577.4,2577.3,0.77574]
[1747584519962,0.77572,2577.4,2577.3,2.79904]
[1747584520165,0.77572,2577.4,2577.3,2.0233]
[1747584520376,0.77574,2577.3,2577.2,1.15068362]
[1747584521065,2.0187,2577.5,2577.4,0.77571]
[1747584521270,12.31077,2577.6,2577.5,0.77568]
[1747584521573,2.0171,2577.6,2577.5,0.77568]
[1747584521875,0.77568,2577.5,2577.4,1.9715]
[1747584522171,0.77568,2577.5,2577.3,1.9595]
[1747584522172,0.77571,2577.4,2577.3,2.73524]
[1747584522766,0.77571,2577.4,2577.3,1.9595]
[1747584523369,0.77571,2577.4,2577.0,1.9715]
[1747584523370,0.7758,2577.1,2577.0,1.9715]
[1747584523571,0.7758,2577.1,2577.0,4.75212]
[1747584523767,14.754,2577.3,2577.0,3.9763]
[1747584523973,0.7758,2577.1,2577.0,3.9763]
[1747584524169,11.5462,2577.3,2577.0,5.00675446]
[1747584524568,0.7758,2577.1,2577.0,5.00675446]
[1747584525466,0.7758,2577.1,2577.0,5.78258446]
[1747584525676,0.7758,2577.1,2577.0,4.75213]
[1747584526472,0.7758,2577.1,2577.0,3.9763]
[1747584528973,0.7758,2577.1,2576.6,3.2078]
[1747584528974,0.77592,2576.7,2576.3,3.2078]
[1747584529172,1.93951,2577.1,2576.4,6.0515]
[1747584529173,3.058,2577.1,2576.4,6.0515]
[1747584529379,3.058,2577.1,2577.0,0.77583]
[1747584529576,3.058,2577.1,2576.7,3.2078]
[1747584529777,3.058,2577.1,2576.7,5.2458]
[1747584529978,3.83381,2577.1,2577.0,0.77583]
[1747584530179,0.77581,2577.1,2577.0,0.77583]
[1747584530378,9.519,2577.3,2576.8,2.038]
[1747584530586,0.77586,2576.9,2576.8,2.81387]
[1747584530786,0.77586,2576.9,2576.8,2.038]
[1747584531397,2.74116,2576.9,2576.8,2.038]
[1747584531801,0.77595,2576.6,2576.5,3.802]
[1747584531999,0.77593,2576.7,2576.6,0.77593]
[1747584532495,0.77493,2576.7,2576.6,0.77593]
[1747584532997,0.77493,2576.7,2576.5,2.038]
[1747584532998,0.77595,2576.6,2576.5,2.038]
[1747584533195,2.70405,2576.6,2576.5,2.038]
[1747584534198,5.91185,2576.6,2576.5,2.038]
[1747584534600,0.77598,2576.5,2576.4,1.9378]
[1747584534899,2.70408,2576.5,2576.4,1.9378]
[1747584535294,2.70408,2576.5,2576.4,3.9058]
[1747584536703,3.8681,2576.5,2576.0,5.1379]
[1747584536905,0.77607,2576.2,2576.1,1.9155]
[1747584537803,0.77605,2576.3,2576.2,0.77606]
[1747584538004,0.77607,2576.2,2576.1,2.69158]
[1747584538404,4.0244,2576.5,2576.1,1.9155]
[1747584538702,3.2078,2577.0,2576.4,3.2078]
[1747584538901,11.5473,2576.9,2576.5,2.0816]
[1747584539095,9.52,2576.9,2576.6,2.1117]
[1747584539296,0.77589,2576.8,2576.7,2.0816]
[1747584540299,0.77589,2576.8,2576.7,2.85752]
[1747584540602,5.3041,2577.0,2576.9,0.77586]
[1747584540806,0.77583,2577.0,2576.9,0.77584]
[1747584541099,4.0455,2577.4,2576.7,2.0816]
[1747584541305,0.77578,2577.2,2577.1,0.77579]
[1747584541601,3.2078,2577.2,2576.7,2.0816]
[1747584541802,1.9375,2577.2,2576.8,2.1173]
[1747584542105,0.77586,2576.9,2576.8,2.1173]
[1747584542292,0.77592,2576.7,2576.6,2.1117]
[1747584542493,0.77592,2576.7,2576.6,5.00495]
[1747584542695,11.4025,2576.8,2576.7,0.77592]
[1747584543002,12.6728,2577.2,2577.1,0.7758]
[1747584543195,3.2078,2577.5,2577.4,0.77571]
[1747584543396,0.77565,2577.6,2577.4,0.77569]
[1747584543598,1.9375,2578.2,2577.1,7.38937597]
[1747584543599,3.2078,2577.8,2577.2,3.9677]
[1747584543807,1.9375,2577.7,2577.3,2.1173]
[1747584544098,4.73324,2577.7,2577.5,0.77567]
[1747584544305,4.73324,2577.7,2577.6,2.1173]
[1747584544700,7.82692612,2577.7,2577.6,2.1173]
[1747584544896,7.05128612,2577.7,2577.2,3.9677]
[1747584545097,0.77567,2577.6,2577.4,0.77568]
[1747584545297,12.19368612,2577.7,2577.3,2.73322]
[1747584545502,0.77571,2577.4,2577.3,1.9575]
[1747584546107,3.2078,2577.5,2576.8,3.2078]
[1747584546410,0.77577,2577.3,2577.1,0.77577]
[1747584546610,0.77577,2577.3,2577.2,1.9575]
[1747584546809,3.058,2577.4,2577.2,2.73325]
[1747584547007,0.77574,2577.3,2577.2,1.9575]
[1747584547404,0.77568,2577.5,2577.3,0.77571]
[1747584547709,0.77568,2577.5,2577.4,2.0452]
[1747584548010,2.74898,2577.5,2577.4,2.0452]
[1747584548204,4.26265431,2577.7,2577.4,2.0452]
[1747584548205,3.09508431,2577.7,2577.4,6.3670399]
[1747584548410,3.09508431,2577.7,2577.5,2.1104]
[1747584548610,2.31945431,2577.7,2577.6,2.82085]
[1747584549005,2.31945431,2577.7,2577.6,9.25344893]
[1747584549707,2.31945431,2578.0,2577.7,0.77562]
[1747584550012,0.77559,2577.9,2577.8,2.0452]
[1747584550210,0.77565,2577.7,2577.5,2.88605]
[1747584550409,0.77565,2577.6,2577.5,2.1104]
[1747584550708,10.2396,2577.8,2577.7,0.77562]
[1747584551010,10.23957,2577.9,2577.5,2.1104]
[1747584551210,9.464,2577.9,2577.7,0.7756]
[1747584551610,10.23958,2577.9,2577.7,0.7756]
[1747584552312,0.77565,2577.6,2577.5,2.1104]
[1747584552607,0.77574,2577.3,2577.2,5.1668]
[1747584553013,0.77577,2577.2,2577.1,3.09991169]
[1747584553199,0.77577,2577.2,2577.1,3.87571169]
[1747584553807,0.77577,2577.2,2577.1,3.09991169]
[1747584554011,1.9833,2577.3,2577.0,0.77582]
[1747584554198,1.9833,2577.3,2576.7,5.1611]
[1747584554199,0.77575,2577.3,2576.7,5.1611]
[1747584554512,0.77573,2577.4,2577.2,0.77575]
[1747584554710,10.23974,2577.3,2577.2,0.77575]
[1747584555501,0.77579,2577.2,2577.0,0.77581]
[1747584556716,9.464,2577.3,2577.0,0.77581]
[1747584556900,9.464,2577.3,2576.9,2.036]
[1747584557201,0.77583,2577.0,2576.9,2.036]
[1747584557609,0.77583,2577.0,2576.9,2.81186]
[1747584557809,0.77582,2577.1,2576.9,2.81186]
[1747584558012,1.9933,2577.2,2577.1,0.7758]
[1747584558509,9.464,2577.3,2577.1,0.7758]
[1747584558705,0.77577,2577.2,2577.1,0.7758]
[1747584559312,10.23975,2577.3,2577.1,0.77578]
[1747584559609,4.31420941,2577.4,2577.0,3.2078]
[1747584559814,9.464,2577.3,2577.2,0.77577]
[1747584561317,10.23974,2577.3,2577.2,0.77577]
[1747584561706,9.464,2577.3,2577.2,0.77577]
[1747584562009,3.2078,2577.5,2577.4,0.77571]
[1747584563013,0.77568,2577.5,2577.1,4.48638592]
[1747584563215,10.23966,2577.6,2577.1,4.48638592]
[1747584563403,10.23966,2577.6,2577.5,0.77568]
[1747584563602,10.23966,2577.6,2577.1,4.48638592]
[1747584563603,9.464,2577.6,2577.1,4.48638592]
[1747584563804,0.77579,2577.2,2576.9,2.036]
[1747584564612,0.7758,2577.1,2577.0,0.77581]
[1747584565316,0.77583,2577.0,2576.9,2.81184]
[1747584565517,0.77586,2576.9,2576.8,1.9215154]
[1747584566313,0.77585,2577.0,2576.9,0.77586]
[1747584566615,0.77582,2577.1,2576.9,0.77586]
[1747584566803,0.77583,2577.0,2576.9,0.77586]
[1747584567008,0.77586,2576.9,2576.8,1.9215154]
[1747584567208,0.77584,2577.0,2576.9,0.77584]
[1747584567518,0.77586,2576.9,2576.8,1.9215254]
[1747584567915,0.77584,2577.0,2576.9,0.77585]
[1747584568705,2.32091424,2577.3,2577.2,0.77577]
[1747584569011,0.77579,2577.2,2577.1,0.77579]
[1747584569211,13.78271424,2577.3,2577.0,2.0227]
[1747584569414,0.77579,2577.2,2577.1,0.77579]
[1747584569815,0.7758,2577.1,2577.0,2.79851]
[1747584570310,3.2078,2576.7,2576.1,1.78305823]
[1747584570511,0.77616,2575.9,2575.7,5.3463452]
[1747584570719,3.98387,2576.2,2575.7,5.3463452]
[1747584570913,0.77615,2576.0,2575.8,6.99441332]
[1747584571121,3.2078,2576.2,2575.8,4.97171332]
[1747584571122,3.98396,2575.9,2575.8,4.97171332]
[1747584571310,3.98396,2575.9,2575.5,2.55554523]
[1747584571311,0.77625,2575.6,2575.5,2.55554523]
[1747584571512,3.98405,2575.6,2575.5,2.55554523]
[1747584572015,5.96345,2575.6,2575.5,2.55554523]
[1747584572710,3.2078,2575.6,2575.5,2.55554523]
[1747584573312,3.98405,2575.6,2575.5,2.55554523]
[1747584573918,5.96345,2575.6,2575.5,2.55554523]
[1747584575615,0.77631,2575.4,2575.3,2.0227]
[1747584575809,0.7763,2575.5,2575.3,2.0227]
[1747584576020,3.2078,2575.6,2575.3,2.0227]
[1747584576215,0.77628,2575.5,2575.3,2.0227]
[1747584576613,0.77631,2575.4,2575.3,2.0227]
[1747584576826,0.77631,2575.5,2575.3,2.79904]
[1747584577117,3.2078,2575.6,2575.3,2.0227]
[1747584577321,0.77631,2575.4,2575.3,2.0227]
[1747584578816,0.77637,2575.2,2575.1,1.992]
[1747584580122,0.7764,2575.1,2575.0,2.0602]
[1747584582116,5.1969,2575.3,2575.0,2.0602]
[1747584582318,3.2078,2575.3,2575.1,0.77639]
[1747584582624,3.98414,2575.3,2575.2,6.40376397]
[1747584583025,3.2078,2575.3,2575.2,2.86397]
[1747584583322,3.2078,2575.3,2575.2,7.18013397]
[1747584583826,3.2078,2575.3,2575.2,12.18013397]
[1747584584722,0.77626,2575.6,2575.5,0.77628]
[1747584585421,0.77628,2575.5,2575.4,4.9898]
[1747584585920,0.77628,2575.5,2575.4,9.08481183]
[1747584586427,0.77627,2575.6,2575.5,0.77628]
[1747584586724,0.77527,2575.6,2575.5,2.87868]
[1747584587420,3.98404,2575.7,2575.6,0.77625]
[1747584587831,3.2078,2575.7,2575.6,0.77625]
[1747584588117,3.2078,2575.7,2575.6,5.25112681]